Cogmind - Beta 14 @@@ ROGUE MODE // 2025.01.02 @ 21:12:26 Player: Prince Malik Result: Destroyed by C-40 Crusher with Compactor Performance ------------- Evolutions (3) 1500 Regions Visited (6) 1200 Robots Destroyed (63) 315 Value Destroyed (2032) 2032 Prototype IDs (3) 60 Alien Tech Used (0) 0 Bonus (252) 252 TOTAL SCORE: 5359 Bonus ------- High Alert Combat Kills 122 Follower Combat Kills 130 Cogmind --------- Core Integrity 0/700 Matter 11/300 Energy 100/100 System Corruption 18% Temperature Cool (0) Movement Core (50) Location -7/Waste Parts ------- > --- POWER (3) -------- (None) > --- PROPULSION (3) --- (None) > --- UTILITY (3) ------ (None) > --- WEAPON (4) ------- (None) > --- INVENTORY (5) ---- Light Treads Aluminum Leg Aluminum Leg Small Storage Unit Large Matter Pod (150) Peak State ------------ > --- POWER ------------ Light Nuclear Core Light Nuclear Core Light Nuclear Core > --- PROPULSION ------- Carbon-fiber Leg Carbon-fiber Leg > --- UTILITY ---------- Improved Heat Sink Large Storage Unit > --- WEAPON ----------- Minigun High-powered Shotgun Mini Grenade Launcher > --- INVENTORY -------- Light Treads Light Treads Light Treads Aluminum Leg Small Storage Unit Large Matter Pod Hacking Suite Light Assault Rifle [Rating: 28] Favorites ----------- Power Light Nuclear Core Engine Light Ion Engine Power Core Light Nuclear Core Propulsion Aluminum Leg Treads Light Treads Leg Aluminum Leg Wheel Armored Wheel Utility Large Storage Unit Device Thief Drone Bay Storage Large Storage Unit Hackware Hacking Suite Weapon Heavy Assault Rifle Energy Gun Particle Gun Energy Cannon Advanced Beam Cannon Ballistic Gun Heavy Assault Rifle Launcher Mini Grenade Launcher Build | -11 -10 -10 -9 -8 -7 -7 ------- Run | Yrd Mat Min Mat Mat Fac Was Slots Evolved 6 | . . . 2 2 2 . Power 2 | . . . 1 1 . . Propulsion 1 | . . . . . 1 . Utility 1 | . . . . . 1 . Weapon 2 | . . . 1 1 . . Parts Attached 61 | 5 15 3 15 23 . . Power 15 | 1 3 . 6 5 . . Engine 12 | 1 3 . 6 2 . . Core 3 | . . . . 3 . . Reactor . | . . . . . . . Propulsion 17 | 2 4 . 4 7 . . Treads 4 | . . . . 4 . . Leg 11 | 2 2 . 4 3 . . Wheel 2 | . 2 . . . . . Hover . | . . . . . . . Flight . | . . . . . . . Utility 9 | . 5 1 . 3 . . Device 4 | . 1 1 . 2 . . Storage 4 | . 4 . . . . . Processor . | . . . . . . . Hackware 1 | . . . . 1 . . Protection . | . . . . . . . Artifact . | . . . . . . . Weapon 20 | 2 3 2 5 8 . . Energy Gun 3 | . . 2 1 . . . Energy Cannon 1 | . . . . 1 . . Ballistic Gun 13 | 2 2 . 3 6 . . Ballistic Cannon . | . . . . . . . Launcher 3 | . 1 . 1 1 . . Special Weapon . | . . . . . . . Impact Weapon . | . . . . . . . Slashing Weapon . | . . . . . . . Piercing Weapon . | . . . . . . . Special Melee Weapon . | . . . . . . . Unidentified Prototypes 3 | . . 1 . 2 . . Parts Lost 24 | . 2 2 2 14 . 4 Power 7 | . . 1 2 3 . 1 Propulsion 5 | . 1 . . 3 . 1 Utility 3 | . . . . 2 . 1 Weapon 9 | . 1 1 . 6 . 1 Highest Loss Streak 8 | . 1 1 2 8 . 4 To Critical Strikes . | . . . . . . . Average Slot Usage (%) 89 | . 98 91 98 84 76 58 Engine 12 | . 14 6 21 7 7 5 Core 4 | . . . . 10 7 5 Treads 3 | . . . . 6 15 11 Leg 13 | . 26 . 20 9 . . Wheel 3 | . 1 28 1 . . . Device 7 | . 6 12 11 8 . . Storage 12 | . 20 15 11 9 7 5 Hackware 1 | . . . . . 7 6 Energy Gun 6 | . . 18 13 2 . . Ballistic Gun 19 | . 24 9 16 22 23 17 Launcher 4 | . 2 . 2 7 7 5 Peak Build Rating 28 | 5 10 16 21 28 26 26 Average Rating 18 | 2 7 15 20 22 26 19 On Entrance 14 | . 5 10 16 20 26 26 Naked Turns 15 | . . . . . . 15 Heaviest Build 50 | 7 32 32 45 50 44 44 Greatest Support 40 | 20 24 24 24 40 40 40 Greatest Overweight (x) 10 | . 1 1 2 10 1 1 Average Overweight (x) 1 | . . 1 1 1 1 . Largest Inventory Capacity 15 | 5 15 15 15 15 15 15 Average Capacity 14 | 5 14 15 15 15 15 12 Most Carried 15 | 5 12 11 15 14 8 8 Average Carried 9 | 2 7 8 14 9 7 7 Final Capacity 15 | 5 15 15 15 15 15 5 Final Carried 15 | 4 7 10 15 7 8 5 Class Distribution -------------------- 37% | Gunner 33% | Mutant 26% | Scavenger-Gunner Dominant Class ---------------- Mutant | -10/Materials Mutant | -10/Mines Gunner | -9/Materials Scavenger-Gunner | -8/Materials Gunner | -7/Factory Gunner | -7/Waste Resources | -11 -10 -10 -9 -8 -7 -7 ----------- Run | Yrd Mat Min Mat Mat Fac Was Matter Collected 1711 | 256 277 186 292 700 . . Remotely 119 | . 119 . . . . . Salvage Created 1756 | 45 328 126 275 982 . . Parts 100 | 1 25 5 21 48 . . Haulers Intercepted 1 | . . . . 1 . . Recyclers Shooed 4 | . 1 . . 3 . . Parts Field Recycled . | . . . . . . . Retrieved Matter . | . . . . . . . Parts Self-Destructed . | . . . . . . . Prevented . | . . . . . . . Kills | -11 -10 -10 -9 -8 -7 -7 ------- Run | Yrd Mat Min Mat Mat Fac Was Combat Hostiles Destroyed 49 | 1 13 4 9 22 . . Guns 24 | 1 6 4 7 6 . . AOE 25 | . 7 . 2 16 . . Classes Destroyed 13 | 1 3 . 1 8 . . Worker 4 | . . . . 4 . . Builder 3 | . 1 . 1 1 . . Hauler 1 | . . . . 1 . . Recycler 2 | . . . . 2 . . Mechanic 1 | . . . . 1 . . Operator 1 | . 1 . . . . . Watcher 2 | . . . . 2 . . Swarmer 11 | . 6 2 3 . . . Grunt 28 | 1 7 2 4 14 . . Sentry 3 | . . . 2 1 . . Specialist 2 | . . . . 2 . . Hunter 4 | . . . . 4 . . Heavy 1 | . . . . 1 . . Best Kill Streak 8 | 1 4 2 5 8 . . Combat Bots Only 5 | 1 3 2 4 5 . . Max Kills in Single Turn 6 | 1 2 1 3 6 . . Gunslinging . | . . . . . . . Exploded 2 | . 2 . 2 2 . . Melee . | . . . . . . . Uniques/NPCs Destroyed . | . . . . . . . Combat | -11 -10 -10 -9 -8 -7 -7 -------- Run | Yrd Mat Min Mat Mat Fac Was Hostile Shots Fired 403 | 2 113 32 104 134 . 18 Missed 118 | 1 33 13 32 39 . . Damage Taken 4317 | 10 828 178 691 1867 . 743 Core 1432 | . 152 21 73 479 . 707 Absorbed by Shields . | . . . . . . . Core Remaining (%) 55 | 100 . 30 81 12 . . Volleys Fired 122 | 1 31 15 12 63 . . Largest 4 | 2 2 2 3 4 . . Hottest 138 | 40 53 115 138 138 . . Shots Fired 318 | 2 61 30 36 189 . . Gun 267 | 2 49 30 33 153 . . Cannon . | . . . . . . . Launcher 51 | . 12 . 3 36 . . Special . | . . . . . . . Kinetic 213 | 2 49 10 18 134 . . Thermal 54 | . . 20 15 19 . . Explosive 51 | . 12 . 3 36 . . Electromagnetic . | . . . . . . . Robot Hit Streak 10 | 2 9 4 8 10 . . Robot Miss Streak 6 | . 2 5 3 6 . . Penetration Max . | . . . . . . . Secondary Targets 2 | . . . . 2 . . Max Gunslinging Chain 1 | . . . . 1 . . Shots Hit Robots 148 | 2 27 14 16 89 . . Core Hits 130 | 2 27 7 14 78 . 2 Critical Kills 1 | . . . . 1 . . Critical Parts Destroyed 2 | . . . . 2 . . Critical Strikes 5 | . . 2 . 3 . . Burn 2 | . . 2 . . . . Destroy 3 | . . . . 3 . . Melee Attacks . | . . . . . . . Impact . | . . . . . . . Slashing . | . . . . . . . Piercing . | . . . . . . . Sneak Attacks . | . . . . . . . Combat Hostiles . | . . . . . . . Follow-up Attacks . | . . . . . . . Damage Inflicted 4817 | 28 799 220 447 3313 . 10 Guns 2071 | 28 362 217 263 1201 . . Cannons . | . . . . . . . Explosions 2696 | . 437 . 156 2103 . . Melee . | . . . . . . . Ramming 50 | . . 3 28 9 . 10 Kinetic 1615 | 28 362 87 111 1027 . . Thermal 456 | . . 130 152 174 . . Explosive 2696 | . 437 . 156 2103 . . Electromagnetic . | . . . . . . . Impact . | . . . . . . . Slashing . | . . . . . . . Piercing . | . . . . . . . Highest Corruption 18 | . . . . . . 18 Average Corruption 8 | . . . . . . 8 Corruption Purged . | . . . . . . . Corruption Blocked . | . . . . . . . Effects 4 | . . . . . . 4 Matter Fused 1 | . . . . . . 1 Heat Flow Errors 1 | . . . . . . 1 Energy Discharges 1 | . . . . . . 1 Misdirections 1 | . . . . . . 1 Overload Shots . | . . . . . . . Overflow Damage 85 | . . . 37 48 . . Projectiles . | . . . . . . . Explosions 85 | . . . 37 48 . . Melee . | . . . . . . . Knockbacks . | . . . . . . . Impact . | . . . . . . . Kinetic . | . . . . . . . Secondary . | . . . . . . . Self-Inflicted Damage 344 | . . 1 84 254 . 5 Shots 11 | . . . 2 9 . . Rammed 6 | . . 2 . 1 . 3 Targets Rammed 14 | . . 2 8 1 . 3 Kicked 8 | . . . 8 . . . Crushed . | . . . . . . . Highest Temperature 524 | . 18 195 180 524 . 172 Average Temperature 143 | . 8 76 67 201 . 92 Received Heat Transfer 1077 | 6 357 30 72 612 . . Effects 22 | . . . . 22 . . Shutdowns 5 | . . . . 5 . . Energy Bleed 2 | . . . . 2 . . Interference 3 | . . . . 3 . . Matter Decay 1 | . . . . 1 . . Short Circuit 1 | . . . . 1 . . Damage (minor) 1 | . . . . 1 . . Damage (major) 8 | . . . . 8 . . Damage (core) 1 | . . . . 1 . . Siege Activations . | . . . . . . . Robots Corrupted . | . . . . . . . Combat Hostiles . | . . . . . . . Parts Fried . | . . . . . . . Impact Corruptions . | . . . . . . . Robots Melted . | . . . . . . . Combat Hostiles . | . . . . . . . Parts Melted 2 | . . 1 1 . . . Heat Transferred 1332 | . . 518 407 407 . . Parts Sabotaged . | . . . . . . . Parts Stolen . | . . . . . . . Parts Stripped . | . . . . . . . Power Chain Reactions . | . . . . . . . Alert | -11 -10 -10 -9 -8 -7 -7 ------- Run | Yrd Mat Min Mat Mat Fac Was Peak Influence 604 | 20 292 105 316 604 267 23 Initial 252 | . 13 35 . 85 252 23 Average 149 | 3 107 60 105 251 208 10 Maximum Alert Level 2 | . 1 . 1 2 1 . Low Security (%) 70 | 100 92 100 85 46 24 100 Level 1 24 | . 7 . 14 37 75 . Level 2 4 | . . . . 16 . . Level 3 . | . . . . . . . Level 4 . | . . . . . . . Level 5 . | . . . . . . . High Security . | . . . . . . . Max Security . | . . . . . . . Squads Dispatched 15 | . 4 . 2 8 1 . Investigation 6 | . 2 . 2 2 . . Extermination . | . . . . . . . Reinforcement 8 | . 2 . . 5 1 . Assault . | . . . . . . . Garrison 1 | . . . . 1 . . Intercept . | . . . . . . . Searches Triggered . | . . . . . . . Construction Impeded 2 | . . . . 2 . . Haulers Reinforced . | . . . . . . . Active Scanning Responses . | . . . . . . . Cargo Convoy Interrupts . | . . . . . . . Stealth | -11 -10 -10 -9 -8 -7 -7 --------- Run | Yrd Mat Min Mat Mat Fac Was Distress Signals 6 | . 2 . 1 3 . . Communications Jammed . | . . . . . . . Distress Signals . | . . . . . . . Times Spotted 99 | 1 24 5 31 31 2 5 Peak Tracking Total 6 | 1 6 2 6 5 1 5 Tactical Retreats 10 | . 1 . 7 2 . . Traps | -11 -10 -10 -9 -8 -7 -7 ------- Run | Yrd Mat Min Mat Mat Fac Was Traps Triggered 4 | . 1 . . 2 1 . Indirectly . | . . . . . . . Trap Hack Attempts . | . . . . . . . Triggered . | . . . . . . . Disarmed . | . . . . . . . Reprogrammed . | . . . . . . . Reused . | . . . . . . . Traps Extracted . | . . . . . . . Installed . | . . . . . . . Triggered . | . . . . . . . Most Traps Carried 3 | . . 3 3 2 . . Machines | -11 -10 -10 -9 -8 -7 -7 ---------- Run | Yrd Mat Min Mat Mat Fac Was Machines Disabled 11 | . 1 . 1 9 . . Max in Single Turn 2 | . 1 . 1 2 . . Machines Repaired . | . . . . . . . Machines Dismantled . | . . . . . . . Machines Sabotaged . | . . . . . . . Overloaded Fab Kills . | . . . . . . . Hacking | -11 -10 -10 -9 -8 -7 -7 --------- Run | Yrd Mat Min Mat Mat Fac Was Machines Accessed 6 | . 1 1 4 . . . Terminals 3 | . 1 . 2 . . . Fabricators . | . . . . . . . Repair Stations . | . . . . . . . Recycling Units . | . . . . . . . Scanalyzers 2 | . . . 2 . . . Garrison Access . | . . . . . . . Total Hacks 29 | . 3 1 25 . . . Successful 23 | . 1 1 21 . . . Failed 6 | . 2 . 4 . . . Catastrophic . | . . . . . . . Database Lockouts . | . . . . . . . Manual . | . . . . . . . Terminals 18 | . 3 . 15 . . . Fabricators . | . . . . . . . Repair Stations . | . . . . . . . Recycling Units . | . . . . . . . Scanalyzers 10 | . . . 10 . . . Garrison Access . | . . . . . . . Terminal Hacks 15 | . 1 1 13 . . . Record 14 | . 1 . 13 . . . Open Door 1 | . . 1 . . . . Fabricator Hacks . | . . . . . . . Repair Station Hacks . | . . . . . . . Recycling Unit Hacks . | . . . . . . . Scanalyzer 8 | . . . 8 . . . Insert Component 5 | . . . 5 . . . Analyze 3 | . . . 3 . . . Garrison Access Hacks . | . . . . . . . Unauthorized Hacks . | . . . . . . . Terminals . | . . . . . . . Fabricators . | . . . . . . . Repair Stations . | . . . . . . . Recycling Units . | . . . . . . . Scanalyzers . | . . . . . . . Garrison Access . | . . . . . . . Data Cores Recovered 1 | . . . 1 . . . Used 1 | . . . 1 . . . Hacking Detections 5 | . 1 . 4 . . . Full Trace Events 5 | . 1 . 4 . . . Feedback Events . | . . . . . . . Feedback Blocked . | . . . . . . . Robot Schematics Acquired . | . . . . . . . Robots Built . | . . . . . . . Authchips . | . . . . . . . Time . | . . . . . . . Total Robot Build Rating . | . . . . . . . Part Schematics Acquired 3 | . . . 3 . . . Parts Built . | . . . . . . . Authchips . | . . . . . . . Time . | . . . . . . . Total Part Build Rating . | . . . . . . . Parts Repaired . | . . . . . . . Time . | . . . . . . . Parts Recycled . | . . . . . . . Recycled Matter . | . . . . . . . Retrieved Matter . | . . . . . . . Retrieved Components . | . . . . . . . Parts Scanalyzed 3 | . . . 3 . . . Part Schematics Acquired 3 | . . . 3 . . . Parts Damaged . | . . . . . . . Bothacking | -11 -10 -10 -9 -8 -7 -7 ------------ Run | Yrd Mat Min Mat Mat Fac Was Used RIF Installer . | . . . . . . . Robots Hacked . | . . . . . . . Non-combat . | . . . . . . . Combat . | . . . . . . . Robot Hacks Applied . | . . . . . . . Relay Couplers Released . | . . . . . . . Fabnet Peak Effective % . | . . . . . . . Robots Rewired . | . . . . . . . Allies Hacked . | . . . . . . . Hacks Repelled . | . . . . . . . Allies | -11 -10 -10 -9 -8 -7 -7 -------- Run | Yrd Mat Min Mat Mat Fac Was Total Allies 1 | . . . . . . 1 Largest Group 1 | . . . . . . 1 Highest-Rated Group 31 | . . . . . . 31 Highest-Rated Ally 31 | . . . . . . 31 Total Orders 2 | . . 2 . . . . RETURN 2 | . . 2 . . . . Ally Attacks 158 | . . 6 112 29 . 11 Total Damage 734 | . . 36 424 88 . 186 Kills 8 | . . . 8 . . . Allies Corrupted . | . . . . . . . Allies Melted . | . . . . . . . Intel | -11 -10 -10 -9 -8 -7 -7 ------- Run | Yrd Mat Min Mat Mat Fac Was Robot Analysis Total . | . . . . . . . Derelict Logs Recovered 1 | . . 1 . . . . Drone Launches 27 | . . 6 19 2 . . Drone Recoveries 25 | . . 3 21 1 . . Exploration | -11 -10 -10 -9 -8 -7 -7 ------------- Run | Yrd Mat Min Mat Mat Fac Was Turns Passed 4446 | 87 849 420 1211 1223 529 127 Spaces Moved 1861 | 69 403 296 377 434 221 61 Core 42 | 18 . . . 3 . 21 Treads 438 | . . . . 177 221 40 Legs 976 | 51 369 . 302 254 . . Wheels 405 | . 34 296 75 . . . Hover . | . . . . . . . Flight . | . . . . . . . Fastest Speed 50 | 50 105 105 105 160 240 50 Average Speed 187 | 101 171 105 213 223 240 174 Slowest Speed 550 | 120 190 105 260 550 240 240 Overloaded Moves . | . . . . . . . Propulsion Burnouts . | . . . . . . . Robots Hopped . | . . . . . . . Cave-ins Triggered . | . . . . . . . Exploration Rate (%) 33 | 5 60 52 43 35 7 32 Regions Visited 6 Branch Regions 1 Pre-discovered Areas . | . . . . . . . Known Exits Taken . | . . . . . . . Unknown Exits Taken 5 | 1 1 1 1 1 . . Scrap Searched 1 | . . 1 . . . . Spaces Dug . | . . . . . . . Terrain Destroyed 225 | . 7 . 22 196 . . Melee . | . . . . . . . Projectile . | . . . . . . . AOE 225 | . 7 . 22 196 . . Terrain Rammed . | . . . . . . . Walls Destroyed . | . . . . . . . Machines Disabled . | . . . . . . . Actions | -11 -10 -10 -9 -8 -7 -7 --------- Run | Yrd Mat Min Mat Mat Fac Was Total 2582 | 84 496 375 751 573 222 81 Wait 433 | 1 27 51 313 24 . 17 Move 1856 | 68 402 295 376 433 221 61 Hop . | . . . . . . . Pick Up 61 | 9 14 6 14 17 1 . Fast Attach . | . . . . . . . Attach 34 | 5 4 1 7 17 . . Detach . | . . . . . . . Swap 28 | . 11 2 8 7 . . Drop 34 | . 7 3 13 11 . . Fire 122 | 1 31 15 12 63 . . Melee . | . . . . . . . Ram 5 | . . 2 . . . 3 Kick 8 | . . . 8 . . . Crush 1 | . . . . 1 . . Escape Stasis . | . . . . . . . Rewire . | . . . . . . . Trap . | . . . . . . . Miscellaneous . | . . . . . . . Route ------- -11/Scrapyard -10/Materials (discovered 2 exits: *Mat / *Min) -10/Mines -9/Materials (discovered 3 exits: [*Mat] / Min x2) -8/Materials -7/Factory -7/Waste History --------- Turn | Location | Event 2 | -11/Scrapyard | Met Revision 17 66 | -11/Scrapyard | Discovered new exit (range 8) 88 | -11/Scrapyard | Entered Materials 307 | -10/Materials | Build established: Mutant 718 | -10/Materials | Discovered new exit (range 9) 825 | -10/Materials | Discovered new exit (range 13) 888 | -10/Materials | Core integrity fell below 50% 937 | -10/Materials | Entered Mines 958 | -10/Mines | Discovered new exit (range 5) 972 | -10/Mines | Found the Drone Emporium 979 | -10/Mines | Found Prototype Device 986 | -10/Mines | Identified Thief Drone Bay 1066 | -10/Mines | Found a hidden stash of uninstalled traps 1357 | -10/Mines | Entered Materials 1357 | -9/Materials | Accompanied by 3 allies 1357 | -9/Materials | Evolved 2 slots: Power x1, Weapon x1 1358 | -9/Materials | Identified exit to Mines 1724 | -9/Materials | Build established: Scavenger-Gunner 2089 | -9/Materials | Build established: Gunner 2507 | -9/Materials | Discovered new exit (range 11) 2568 | -9/Materials | Entered another Materials area 2568 | -8/Materials | Evolved 2 slots: Power x1, Weapon x1 2894 | -8/Materials | Lost 8 parts (2p2n2u2w) 3235 | -8/Materials | Build established: Scavenger-Gunner 3271 | -8/Materials | Core integrity fell below 50% 3331 | -8/Materials | Lost 3 parts (1p1n1w) 3693 | -8/Materials | Garrison activated, responded to threat 3696 | -8/Materials | Core integrity fell below 20% 3737 | -8/Materials | Discovered new exit (range 13) 3791 | -8/Materials | Entered Factory 3791 | -7/Factory | Evolved 2 slots: Propulsion x1, Utility x1 3862 | -7/Factory | Build established: Gunner 4320 | -7/Factory | Sucked down chute 4320 | -7/Factory | Entered Waste 4321 | -7/Waste | Met a frightened Derelict 4335 | -7/Waste | EMP discharged 4343 | -7/Waste | Spotted C-40 Crusher 4375 | -7/Waste | Spotted C-40 Crusher 4384 | -7/Waste | Spotted C-40 Crusher 4387 | -7/Waste | Spotted C-40 Crusher 4400 | -7/Waste | Spotted C-40 Crusher 4413 | -7/Waste | Crushed by Compactor (1 part destroyed, 2 dropped) 4416 | -7/Waste | Crushed by Compactor (1 part destroyed, 2 dropped) 4416 | -7/Waste | Crushed by Compactor (1 part destroyed, 2 dropped) 4432 | -7/Waste | Crushed by Compactor (1 part destroyed) 4435 | -7/Waste | EMP discharged 4435 | -7/Waste | System corruption reached 10% 4440 | -7/Waste | Core integrity fell below 50% 4445 | -7/Waste | Core integrity fell below 20% 4447 | -7/Waste | Destroyed by C-40 Crusher with Compactor Last Messages --------------- Imp. Heat Sink crushed. Enh. Autogun crushed. Imp. Carbon-fiber Leg crushed. Broken Imp. Plasma Cutter crushed. Hpw. Shotgun crushed. Lgt. Nuclear Core crushed. System Shield crushed. Enh. Autogun crushed. ALERT: Foreign system detected. Charging EMP. Lgt. Treads crushed. Hacking Suite crushed. System corrupted (+9). [Achievement: System Compromised] System corrupted: Energy discharge (-20). Slammed into C-40 Crusher. Destabilizing: Core damaged (-35). Slammed into C-40 Crusher. Destabilizing: System corrupted (+2). Slammed into C-40 Crusher. [Achievement: 5k Club] Map ----- +----------------------------------------------------+ | ?????????????????????????????????????????????????? | | ?????????????????????????????????????????????????? | | ?????????????????????????????????????????????????? | | ?????????????????????????????????????????????????? | | ?????????????????????????????????????????????????? | | ?????????????????????????????????????????????????? | | ?????????????????????????????????????????????????? | | ?????????????????????????????????????????????????? | | ?????????????????????????????????????????????????? | | ?????????????????????????????????????????????????? | | ?????????????????????????????????????????????????? | | ?????????????????????????????????????????????????? | | ?????????????????????????????????????????????????? | | ?????????????????????????????????????????????????? | | ?????????????????????????????????????????????????? | | ?????????????????????????????????????????????????? | | ?????????????????????????????????????????????????? | | ???????????????????????##########????????????????? | | ???????????????????????# #????????????????? | | ???????????????????????# #????????????????? | | ???????????????????????# #????????????????? | | ???????????????????????# CC #????????????????? | | ???????????????????????# CC #????????????????? | | ???????????????????????#CCCC #????????????????? | | ???????????????????????#CCCC #????????????????? | | ???????????????????????# @CCCC #????????????????? | | ???????????????????????###CCCC###????????????????? | | ?????????????????????????# #??????????????????? | | ?????????????????????????# #??????????????????? | | ?????????????????????????# #????????? #??????? | | ???????????????????????### ######## #??????? | | ???????????????????????# ?????? | | ???????????????????????# ?????? | | ???????????????????????# ?????? | | ???????????????????????# ] ?????? | | ???????????????????????### ######## #??????? | | ?????????????????????????# #????????? #??????? | | ?????????????????????????# #??????????????????? | | ?????????????????????????# #??????????????????? | | ???????????????????????### #??????????????????? | | ???????????????????????# #??????????????????? | | ???????????????????????# #??????????????????? | | ???????????????????????# #??????????????????? | | ???????????????????????# #??????????????????? | | ???????????????????????### #??????????????????? | | ???????????############??# #??????????????????? | | ???????????# #??# #??????????????????? | | ???????????# #??# #??????????????????? | | ???????????# #### ######## ???????? | | ???????????# [ ??????? | +----------------------------------------------------+ Best States ------------- Heat Dissipation 45 Energy Generation 32 Energy Capacity 440 Matter Stores 300 Matter Capacity 450 Sight Range 16 Terrain Scan Density 10 Evasion (%) 55 Recoil Reduction 2 Offensive Hacking 10 Item Schematics ----------------- Assault Rifle | -9/Materials | Scanalyzed Aluminum Leg | -9/Materials | Scanalyzed Mni. Grenade Launcher | -9/Materials | Scanalyzed Robot Schematics ------------------ None Fabricated ------------ Nothing Alien Tech Used ----------------- None Achievements -------------- 5k Club Dynamic Key Let's See Who's Tougher Librarian Oops Remodeling Risk Taker System Compromised Troublemaker Use The Force Challenges ------------ None Game ------ Seed OmegaReactionBasin Manual? 0 Play Time 00:44:20 Cumulative 1.5 hours Start 2025.01.02 @ 20:24:16 End 2025.01.02 @ 21:12:26 Sessions 1 Manual Loads 0 Difficulty Rogue Special Mode None Game No. 2 Rogue 2 Adventurer 0 Explorer 0 Win Type - Total 0 Types 0/0/0/0/0/0/0/0/0 Lore% 1 Gallery% 3 Achievement% 7 Wizard Run 0 Options --------- Layout 1 ASCII 0 Keyboard 0 Movement Mouse Keybinds 0 Fullscreen 1 Font 24/Smallcaps Map View 50x35 Zoom Use 0% Tactical HUD 0 Map Filters NONE Filters NONE Steam 0 RUN: 65636dab-521d-4c7c-8be1-dfa7e63dc1dc